[Event "Titled Tuesday Blitz November 07 Late 2023"]
[White "Adla, Diego"]
[Black "victormago"]
[WhiteFideId "100072"]
[WhiteElo "2628"]
[BlackElo "2481"]
[Result "1-0"]
[Round "9"]
[TimeControl "180+1"]
[Date "2023.11.07"]
[WhiteClock "0:00:23"]
[BlackClock "0:00:11"]
[Board "46"]

1. e4 {[%clk 0:02:53]}  c5 {[%clk 0:02:56]} 2. Nf3 {[%clk 0:02:52]}  d6 {[%clk 0:02:56]} 3. d4 {[%clk 0:02:52]}  cxd4 {[%clk 0:02:56]} 4. Nxd4 {[%clk 0:02:53]}  Nf6 {[%clk 0:02:57]} 5. Nc3 {[%clk 0:02:53]}  a6 {[%clk 0:02:57]} 6. Bc4 {[%clk 0:02:53]}  e6 {[%clk 0:02:57]} 7. a4 {[%clk 0:02:53]}  Qc7 {[%clk 0:02:57]} 8. Qe2 {[%clk 0:02:50]}  Nc6 {[%clk 0:02:55]} 9. Be3 {[%clk 0:02:46]}  Be7 {[%clk 0:02:55]} 10. O-O {[%clk 0:02:43]}  O-O {[%clk 0:02:54]} 11. f4 {[%clk 0:02:42]}  Bd7 {[%clk 0:02:44]} 12. Kh1 {[%clk 0:02:30]}  Rac8 {[%clk 0:02:41]} 13. Bd3 {[%clk 0:02:22]}  Rfe8 {[%clk 0:02:16]} 14. Nxc6 {[%clk 0:02:12]}  Bxc6 {[%clk 0:02:12]} 15. a5 {[%clk 0:02:12]}  e5 {[%clk 0:02:06]} 16. Bb6 {[%clk 0:01:46]}  Qb8 {[%clk 0:02:05]} 17. Rad1 {[%clk 0:01:34]}  exf4 {[%clk 0:01:59]} 18. Rxf4 {[%clk 0:01:31]}  d5 {[%clk 0:01:47]} 19. e5 {[%clk 0:01:28]}  Bd6 {[%clk 0:00:50]} 20. Rxf6 {[%clk 0:01:00]}  Rxe5 {[%clk 0:00:42]} 21. Qg4 {[%clk 0:00:47]}  h5 {[%clk 0:00:20]} 22. Qxc8+ {[%clk 0:00:33]}  Qxc8 {[%clk 0:00:19]} 23. Rxd6 {[%clk 0:00:33]}  Re8 {[%clk 0:00:17]} 24. Nxd5 {[%clk 0:00:33]}  Bxd5 {[%clk 0:00:17]} 25. Rxd5 {[%clk 0:00:33]}  Qe6 {[%clk 0:00:16]} 26. Rxh5 {[%clk 0:00:31]}  g6 {[%clk 0:00:16]} 27. Rh3 {[%clk 0:00:30]}  Rd8 {[%clk 0:00:15]} 28. Re3 {[%clk 0:00:28]}  Qa2 {[%clk 0:00:15]} 29. Bxd8 {[%clk 0:00:27]}  Qxb2 {[%clk 0:00:11]} 30. Rde1 {[%clk 0:00:23]} 1-0


[Site "https://www.chess.com"]

[Event "Titled Tuesday Blitz November 07 Late 2023"]
[White "FuenfgegenWilly"]
[Black "Ozates, Tuna"]
[BlackFideId "6354521"]
[WhiteElo "2447"]
[BlackElo "2580"]
[Result "1-0"]
[Round "9"]
[TimeControl "180+1"]
[Date "2023.11.07"]
[WhiteClock "0:00:12"]
[BlackClock "0:00:01"]
[Board "48"]

1. e4 {[%clk 0:03:00]}  c5 {[%clk 0:02:53]} 2. Nc3 {[%clk 0:03:01]}  g6 {[%clk 0:02:51]} 3. f4 {[%clk 0:03:01]}  Bg7 {[%clk 0:02:51]} 4. Nf3 {[%clk 0:03:02]}  Nc6 {[%clk 0:02:52]} 5. Bb5 {[%clk 0:03:02]}  Nd4 {[%clk 0:02:52]} 6. O-O {[%clk 0:03:02]}  e6 {[%clk 0:02:49]} 7. Bd3 {[%clk 0:02:57]}  Ne7 {[%clk 0:02:48]} 8. Nxd4 {[%clk 0:02:55]}  cxd4 {[%clk 0:02:48]} 9. Ne2 {[%clk 0:02:55]}  d6 {[%clk 0:02:47]} 10. c3 {[%clk 0:02:55]}  dxc3 {[%clk 0:02:46]} 11. dxc3 {[%clk 0:02:55]}  O-O {[%clk 0:02:47]} 12. Ng3 {[%clk 0:02:54]}  b5 {[%clk 0:02:45]} 13. f5 {[%clk 0:02:53]}  exf5 {[%clk 0:02:37]} 14. exf5 {[%clk 0:02:54]}  f6 {[%clk 0:02:30]} 15. Be3 {[%clk 0:02:47]}  Bb7 {[%clk 0:02:14]} 16. Bxb5 {[%clk 0:02:43]}  Kh8 {[%clk 0:02:11]} 17. Bd3 {[%clk 0:02:39]}  Nd5 {[%clk 0:02:07]} 18. Bd4 {[%clk 0:02:38]}  g5 {[%clk 0:02:07]} 19. Kh1 {[%clk 0:02:34]}  Nf4 {[%clk 0:02:04]} 20. Rxf4 {[%clk 0:02:30]}  gxf4 {[%clk 0:02:03]} 21. Nh5 {[%clk 0:02:31]}  f3 {[%clk 0:01:48]} 22. gxf3 {[%clk 0:02:17]}  Qe8 {[%clk 0:01:45]} 23. Ng3 {[%clk 0:02:16]}  Bh6 {[%clk 0:01:38]} 24. Ne4 {[%clk 0:02:02]}  Bxe4 {[%clk 0:01:18]} 25. Bxe4 {[%clk 0:02:03]}  Rd8 {[%clk 0:01:14]} 26. Bd5 {[%clk 0:01:55]}  Bf4 {[%clk 0:01:09]} 27. Bxa7 {[%clk 0:01:43]}  Qh5 {[%clk 0:01:07]} 28. Qc2 {[%clk 0:01:41]}  Rd7 {[%clk 0:01:02]} 29. Bd4 {[%clk 0:01:37]}  Rg7 {[%clk 0:01:02]} 30. Rg1 {[%clk 0:01:33]}  Rxg1+ {[%clk 0:00:42]} 31. Kxg1 {[%clk 0:01:34]}  Bg5 {[%clk 0:00:38]} 32. Qe4 {[%clk 0:01:21]}  Re8 {[%clk 0:00:36]} 33. Be6 {[%clk 0:01:22]}  Qh6 {[%clk 0:00:24]} 34. Qc6 {[%clk 0:00:54]}  Qh5 {[%clk 0:00:12]} 35. Kg2 {[%clk 0:00:35]}  Bh4 {[%clk 0:00:12]} 36. Qe4 {[%clk 0:00:31]}  Qg5+ {[%clk 0:00:08]} 37. Qg4 {[%clk 0:00:31]}  Qd2+ {[%clk 0:00:09]} 38. Kh3 {[%clk 0:00:30]}  Bg5 {[%clk 0:00:09]} 39. f4 {[%clk 0:00:26]}  Qd3+ {[%clk 0:00:07]} 40. Qg3 {[%clk 0:00:26]}  Qf1+ {[%clk 0:00:08]} 41. Kg4 {[%clk 0:00:25]}  Qe2+ {[%clk 0:00:06]} 42. Qf3 {[%clk 0:00:23]}  Qxh2 {[%clk 0:00:04]} 43. fxg5 {[%clk 0:00:19]}  h5+ {[%clk 0:00:04]} 44. gxh6 {[%clk 0:00:16]}  Kh7 {[%clk 0:00:04]} 45. Qg3 {[%clk 0:00:15]}  Qe2+ {[%clk 0:00:04]} 46. Kf4 {[%clk 0:00:14]}  Qd2+ {[%clk 0:00:03]} 47. Kf3 {[%clk 0:00:14]}  Qd1+ {[%clk 0:00:03]} 48. Kf2 {[%clk 0:00:14]}  Qd2+ {[%clk 0:00:04]} 49. Kg1 {[%clk 0:00:13]}  Qd1+ {[%clk 0:00:04]} 50. Kh2 {[%clk 0:00:13]}  Qh5+ {[%clk 0:00:04]} 51. Kg1 {[%clk 0:00:11]}  Qd1+ {[%clk 0:00:05]} 52. Kg2 {[%clk 0:00:12]}  Qe2+ {[%clk 0:00:04]} 53. Qf2 {[%clk 0:00:12]}  Qg4+ {[%clk 0:00:05]} 54. Kf1 {[%clk 0:00:12]}  Qd1+ {[%clk 0:00:05]} 55. Qe1 {[%clk 0:00:12]}  Qf3+ {[%clk 0:00:05]} 56. Bf2 {[%clk 0:00:11]}  Qh1+ {[%clk 0:00:06]} 57. Ke2 {[%clk 0:00:11]}  Qe4+ {[%clk 0:00:07]} 58. Kd2 {[%clk 0:00:12]}  Qf4+ {[%clk 0:00:07]} 59. Be3 {[%clk 0:00:12]}  Qh2+ {[%clk 0:00:06]} 60. Qf2 {[%clk 0:00:12]}  Qe5 {[%clk 0:00:03]} 61. Qg1 {[%clk 0:00:12]}  Rxe6 {[%clk 0:00:01]} 62. Qg6+ {[%clk 0:00:11]}  Kh8 {[%clk 0:00:01]} 63. Qg7# {[%clk 0:00:12]} 1-0


[Site "https://www.chess.com"]

[Event "Titled Tuesday Blitz November 07 Late 2023"]
[White "Kujawski, Adam"]
[Black "Pinto, Daniel"]
[WhiteFideId "1100920"]
[BlackFideId "3303144"]
[WhiteElo "2394"]
[BlackElo "2511"]
[Result "1-0"]
[Round "9"]
[TimeControl "180+1"]
[Date "2023.11.07"]
[WhiteClock "0:00:09"]
[BlackClock "0:00:00"]
[Board "51"]

1. e4 {[%clk 0:03:00]}  e5 {[%clk 0:02:51]} 2. Nf3 {[%clk 0:03:00]}  Nc6 {[%clk 0:02:49]} 3. Bb5 {[%clk 0:03:00]}  Nf6 {[%clk 0:02:48]} 4. O-O {[%clk 0:02:57]}  Nxe4 {[%clk 0:02:48]} 5. d4 {[%clk 0:02:57]}  Nd6 {[%clk 0:02:48]} 6. Bg5 {[%clk 0:02:57]}  Be7 {[%clk 0:02:36]} 7. Bxc6 {[%clk 0:02:55]}  dxc6 {[%clk 0:02:34]} 8. dxe5 {[%clk 0:02:54]}  Nf5 {[%clk 0:02:31]} 9. Qxd8+ {[%clk 0:02:52]}  Bxd8 {[%clk 0:02:32]} 10. Bxd8 {[%clk 0:02:52]}  Kxd8 {[%clk 0:02:33]} 11. Rd1+ {[%clk 0:02:52]}  Ke7 {[%clk 0:02:33]} 12. g4 {[%clk 0:02:46]}  Nh6 {[%clk 0:02:32]} 13. h3 {[%clk 0:02:45]}  Be6 {[%clk 0:02:28]} 14. Nc3 {[%clk 0:02:36]}  Rad8 {[%clk 0:02:21]} 15. Nd4 {[%clk 0:02:13]}  a6 {[%clk 0:01:47]} 16. f4 {[%clk 0:02:02]}  c5 {[%clk 0:01:46]} 17. Nxe6 {[%clk 0:01:54]}  fxe6 {[%clk 0:01:45]} 18. Ne4 {[%clk 0:01:34]}  b6 {[%clk 0:01:45]} 19. Kf2 {[%clk 0:01:31]}  Nf7 {[%clk 0:01:36]} 20. Ke3 {[%clk 0:01:29]}  h6 {[%clk 0:01:22]} 21. h4 {[%clk 0:01:22]}  c4 {[%clk 0:00:21]} 22. h5 {[%clk 0:01:17]}  Rd5 {[%clk 0:00:09]} 23. Nc3 {[%clk 0:01:15]}  Rxd1 {[%clk 0:00:07]} 24. Rxd1 {[%clk 0:01:14]}  Rg8 {[%clk 0:00:07]} 25. Ne4 {[%clk 0:01:05]}  g5 {[%clk 0:00:04]} 26. Rd7+ {[%clk 0:00:48]}  Kxd7 {[%clk 0:00:03]} 27. Nf6+ {[%clk 0:00:48]}  Kc6 {[%clk 0:00:04]} 28. Nxg8 {[%clk 0:00:49]}  gxf4+ {[%clk 0:00:03]} 29. Kxf4 {[%clk 0:00:49]}  c3 {[%clk 0:00:03]} 30. bxc3 {[%clk 0:00:47]}  Kd5 {[%clk 0:00:04]} 31. Nxh6 {[%clk 0:00:30]}  Nxh6 {[%clk 0:00:04]} 32. g5 {[%clk 0:00:31]}  Nf5 {[%clk 0:00:02]} 33. g6 {[%clk 0:00:14]}  Kc6 {[%clk 0:00:02]} 34. Kg5 {[%clk 0:00:09]}  Kd7 {[%clk 0:00:00]} 35. h6 {[%clk 0:00:09]} 1-0


[Site "https://www.chess.com"]

[Event "Titled Tuesday Blitz November 07 Late 2023"]
[White "Musovic, Armin"]
[Black "Chigaev, Maksim"]
[WhiteFideId "939935"]
[BlackFideId "4108116"]
[WhiteElo "2498"]
[BlackElo "2872"]
[Result "0-1"]
[Round "9"]
[TimeControl "180+1"]
[Date "2023.11.07"]
[WhiteClock "0:00:03"]
[BlackClock "0:00:08"]
[Board "52"]

1. a3 {[%clk 0:02:52]}  g6 {[%clk 0:02:55]} 2. Nc3 {[%clk 0:02:52]}  Bg7 {[%clk 0:02:55]} 3. e4 {[%clk 0:02:53]}  c5 {[%clk 0:02:54]} 4. Bc4 {[%clk 0:02:53]}  Nc6 {[%clk 0:02:53]} 5. d3 {[%clk 0:02:54]}  e6 {[%clk 0:02:53]} 6. Bf4 {[%clk 0:02:54]}  a6 {[%clk 0:02:52]} 7. Bd6 {[%clk 0:02:53]}  b6 {[%clk 0:02:46]} 8. Nge2 {[%clk 0:02:51]}  Nge7 {[%clk 0:02:41]} 9. O-O {[%clk 0:02:49]}  O-O {[%clk 0:02:41]} 10. Qd2 {[%clk 0:02:47]}  Bb7 {[%clk 0:02:38]} 11. Rad1 {[%clk 0:02:46]}  Re8 {[%clk 0:02:31]} 12. h3 {[%clk 0:02:39]}  Nc8 {[%clk 0:02:27]} 13. Bh2 {[%clk 0:02:39]}  d6 {[%clk 0:02:27]} 14. Ba2 {[%clk 0:02:39]}  N8e7 {[%clk 0:02:17]} 15. f4 {[%clk 0:02:38]}  d5 {[%clk 0:02:17]} 16. f5 {[%clk 0:02:26]}  exf5 {[%clk 0:02:16]} 17. Nxd5 {[%clk 0:02:08]}  Nxd5 {[%clk 0:02:16]} 18. Bxd5 {[%clk 0:02:06]}  Qd7 {[%clk 0:02:16]} 19. c4 {[%clk 0:01:58]}  Ne7 {[%clk 0:02:11]} 20. Nc3 {[%clk 0:01:47]}  Nxd5 {[%clk 0:01:28]} 21. Nxd5 {[%clk 0:01:32]}  b5 {[%clk 0:01:28]} 22. Kh1 {[%clk 0:01:17]}  Rad8 {[%clk 0:00:57]} 23. Qg5 {[%clk 0:00:46]}  Bxd5 {[%clk 0:00:52]} 24. exd5 {[%clk 0:00:43]}  Bxb2 {[%clk 0:00:52]} 25. Bf4 {[%clk 0:00:29]}  bxc4 {[%clk 0:00:38]} 26. dxc4 {[%clk 0:00:29]}  Re4 {[%clk 0:00:38]} 27. Rde1 {[%clk 0:00:19]}  Rxc4 {[%clk 0:00:20]} 28. Re7 {[%clk 0:00:16]}  Qxd5 {[%clk 0:00:21]} 29. Ra7 {[%clk 0:00:09]}  Rc2 {[%clk 0:00:16]} 30. Bh2 {[%clk 0:00:05]}  h6 {[%clk 0:00:14]} 31. Qg3 {[%clk 0:00:04]}  Be5 {[%clk 0:00:13]} 32. Qf3 {[%clk 0:00:03]}  Bxh2 {[%clk 0:00:11]} 33. Qxd5 {[%clk 0:00:02]}  Rxd5 {[%clk 0:00:12]} 34. Kxh2 {[%clk 0:00:02]}  Rdd2 {[%clk 0:00:12]} 35. Rg1 {[%clk 0:00:02]}  Rd6 {[%clk 0:00:12]} 36. Ra8+ {[%clk 0:00:03]}  Kg7 {[%clk 0:00:12]} 37. Ra7 {[%clk 0:00:04]}  c4 {[%clk 0:00:12]} 38. Kh1 {[%clk 0:00:05]}  h5 {[%clk 0:00:12]} 39. Rc7 {[%clk 0:00:06]}  h4 {[%clk 0:00:12]} 40. Rc5 {[%clk 0:00:06]}  c3 {[%clk 0:00:08]} 41. a4 {[%clk 0:00:06]}  Rd4 {[%clk 0:00:07]} 42. a5 {[%clk 0:00:06]}  Ra4 {[%clk 0:00:05]} 43. Kh2 {[%clk 0:00:06]}  Rca2 {[%clk 0:00:03]} 44. Rxc3 {[%clk 0:00:06]}  Rxa5 {[%clk 0:00:04]} 45. Rc4 {[%clk 0:00:06]}  R2a4 {[%clk 0:00:04]} 46. Rc8 {[%clk 0:00:07]}  Re4 {[%clk 0:00:05]} 47. Kh1 {[%clk 0:00:07]}  Rae5 {[%clk 0:00:05]} 48. Kh2 {[%clk 0:00:07]}  Re7 {[%clk 0:00:06]} 49. Rcc1 {[%clk 0:00:07]}  Ra7 {[%clk 0:00:06]} 50. g3 {[%clk 0:00:06]}  hxg3+ {[%clk 0:00:05]} 51. Rxg3 {[%clk 0:00:07]}  a5 {[%clk 0:00:06]} 52. Ra3 {[%clk 0:00:08]}  a4 {[%clk 0:00:07]} 53. h4 {[%clk 0:00:08]}  Kh6 {[%clk 0:00:07]} 54. Kg3 {[%clk 0:00:09]}  Kh5 {[%clk 0:00:07]} 55. Rc8 {[%clk 0:00:08]}  Rg4+ {[%clk 0:00:08]} 56. Kf3 {[%clk 0:00:08]}  Kxh4 {[%clk 0:00:08]} 57. Rxa4 {[%clk 0:00:05]}  Rgxa4 {[%clk 0:00:08]} 58. Rh8+ {[%clk 0:00:03]}  Kg5 {[%clk 0:00:08]} 0-1


[Site "https://www.chess.com"]

[Event "Titled Tuesday Blitz November 07 Late 2023"]
[White "Hajiyev, Kanan"]
[Black "Rosen, Eric"]
[WhiteFideId "13404148"]
[BlackFideId "2032562"]
[WhiteElo "2483"]
[BlackElo "2713"]
[Result "0-1"]
[Round "9"]
[TimeControl "180+1"]
[Date "2023.11.07"]
[WhiteClock "0:00:57"]
[BlackClock "0:01:53"]
[Board "55"]

1. d4 {[%clk 0:03:00]}  d5 {[%clk 0:02:59]} 2. Nf3 {[%clk 0:03:01]}  Nf6 {[%clk 0:02:58]} 3. c4 {[%clk 0:03:02]}  e6 {[%clk 0:02:58]} 4. cxd5 {[%clk 0:03:02]}  exd5 {[%clk 0:02:59]} 5. Nc3 {[%clk 0:03:03]}  c6 {[%clk 0:02:59]} 6. Qc2 {[%clk 0:03:02]}  Bd6 {[%clk 0:02:59]} 7. Bg5 {[%clk 0:03:02]}  O-O {[%clk 0:03:00]} 8. e3 {[%clk 0:03:02]}  Re8 {[%clk 0:02:57]} 9. Bd3 {[%clk 0:03:02]}  h6 {[%clk 0:02:57]} 10. Bh4 {[%clk 0:03:02]}  Be6 {[%clk 0:02:57]} 11. Ne5 {[%clk 0:03:02]}  c5 {[%clk 0:02:57]} 12. O-O {[%clk 0:02:58]}  Nc6 {[%clk 0:02:58]} 13. Nxc6 {[%clk 0:02:48]}  bxc6 {[%clk 0:02:58]} 14. dxc5 {[%clk 0:02:47]}  Bxh2+ {[%clk 0:02:52]} 15. Kxh2 {[%clk 0:02:41]}  Ng4+ {[%clk 0:02:51]} 16. Kg3 {[%clk 0:02:30]}  g5 {[%clk 0:02:51]} 17. Bf5 {[%clk 0:02:21]}  gxh4+ {[%clk 0:02:41]} 18. Kh3 {[%clk 0:02:20]}  Qg5 {[%clk 0:02:40]} 19. Bxe6 {[%clk 0:02:03]}  Rxe6 {[%clk 0:02:39]} 20. Ne2 {[%clk 0:02:00]}  Rxe3+ {[%clk 0:01:59]} 21. fxe3 {[%clk 0:01:45]}  Nxe3 {[%clk 0:01:57]} 22. Rf5 {[%clk 0:00:57]}  Qg4+ {[%clk 0:01:53]} 0-1


[Site "https://www.chess.com"]

[Event "Titled Tuesday Blitz November 07 Late 2023"]
[White "Sepulveda Rojas, Jorge"]
[Black "Balla, Tamas-Kristof"]
[WhiteFideId "3404803"]
[BlackFideId "1208497"]
[WhiteElo "2511"]
[BlackElo "2371"]
[Result "0-1"]
[Round "9"]
[TimeControl "180+1"]
[Date "2023.11.07"]
[WhiteClock "0:00:04"]
[BlackClock "0:00:30"]
[Board "62"]

1. e4 {[%clk 0:03:00]}  c5 {[%clk 0:03:00]} 2. Nf3 {[%clk 0:03:00]}  Nc6 {[%clk 0:03:00]} 3. d4 {[%clk 0:03:00]}  cxd4 {[%clk 0:03:00]} 4. Nxd4 {[%clk 0:03:01]}  e5 {[%clk 0:03:00]} 5. Nb3 {[%clk 0:03:00]}  Nf6 {[%clk 0:03:00]} 6. Nc3 {[%clk 0:02:59]}  Bb4 {[%clk 0:03:00]} 7. Bd3 {[%clk 0:02:59]}  Bxc3+ {[%clk 0:02:59]} 8. bxc3 {[%clk 0:02:58]}  h6 {[%clk 0:02:59]} 9. O-O {[%clk 0:02:58]}  d6 {[%clk 0:02:59]} 10. c4 {[%clk 0:02:55]}  O-O {[%clk 0:02:59]} 11. h3 {[%clk 0:02:34]}  Be6 {[%clk 0:02:47]} 12. Ba3 {[%clk 0:02:23]}  a5 {[%clk 0:02:45]} 13. Rb1 {[%clk 0:02:15]}  a4 {[%clk 0:02:37]} 14. Nd2 {[%clk 0:02:13]}  Qc7 {[%clk 0:02:29]} 15. c5 {[%clk 0:02:00]}  d5 {[%clk 0:02:20]} 16. exd5 {[%clk 0:02:00]}  Bxd5 {[%clk 0:02:20]} 17. Nc4 {[%clk 0:01:55]}  Rad8 {[%clk 0:02:15]} 18. Nd6 {[%clk 0:01:46]}  Na5 {[%clk 0:01:57]} 19. Qe1 {[%clk 0:01:37]}  e4 {[%clk 0:01:52]} 20. Be2 {[%clk 0:01:32]}  Bxa2 {[%clk 0:01:46]} 21. Rb5 {[%clk 0:01:30]}  Nc6 {[%clk 0:01:18]} 22. Rxb7 {[%clk 0:01:29]}  Qa5 {[%clk 0:01:19]} 23. Qa1 {[%clk 0:01:24]}  Bd5 {[%clk 0:01:15]} 24. Rb5 {[%clk 0:01:13]}  Qa8 {[%clk 0:01:14]} 25. Bb2 {[%clk 0:01:11]}  Na7 {[%clk 0:00:42]} 26. Ra5 {[%clk 0:01:00]}  Ne8 {[%clk 0:00:41]} 27. Nxe8 {[%clk 0:00:52]}  Rfxe8 {[%clk 0:00:40]} 28. Bxg7 {[%clk 0:00:52]}  Re6 {[%clk 0:00:41]} 29. Bd4 {[%clk 0:00:38]}  Qb8 {[%clk 0:00:31]} 30. Rb1 {[%clk 0:00:34]}  Qc7 {[%clk 0:00:32]} 31. Rxa4 {[%clk 0:00:32]}  Nc6 {[%clk 0:00:32]} 32. Be3 {[%clk 0:00:32]}  Rg6 {[%clk 0:00:32]} 33. Bg4 {[%clk 0:00:23]}  Ne5 {[%clk 0:00:31]} 34. Be2 {[%clk 0:00:20]}  Nf3+ {[%clk 0:00:30]} 35. Kf1 {[%clk 0:00:16]}  Qh2 {[%clk 0:00:31]} 36. Bxf3 {[%clk 0:00:15]}  exf3 {[%clk 0:00:31]} 37. gxf3 {[%clk 0:00:04]}  Bxf3 {[%clk 0:00:30]} 0-1


[Site "https://www.chess.com"]

[Event "Titled Tuesday Blitz November 07 Late 2023"]
[White "Czerw, Dawid"]
[Black "Mesa Cruz, Juan Carlos"]
[WhiteFideId "1145746"]
[BlackFideId "6423400"]
[WhiteElo "2505"]
[BlackElo "2318"]
[Result "1-0"]
[Round "9"]
[TimeControl "180+1"]
[Date "2023.11.07"]
[WhiteClock "0:01:28"]
[BlackClock "0:00:43"]
[Board "65"]

1. e4 {[%clk 0:03:00]}  c5 {[%clk 0:02:42]} 2. Nf3 {[%clk 0:03:00]}  d6 {[%clk 0:02:41]} 3. d4 {[%clk 0:03:00]}  cxd4 {[%clk 0:02:41]} 4. Nxd4 {[%clk 0:03:01]}  Nf6 {[%clk 0:02:41]} 5. Nc3 {[%clk 0:03:02]}  a6 {[%clk 0:02:41]} 6. h4 {[%clk 0:03:02]}  e5 {[%clk 0:02:40]} 7. Nb3 {[%clk 0:03:01]}  Be7 {[%clk 0:02:38]} 8. Be2 {[%clk 0:03:00]}  b5 {[%clk 0:02:38]} 9. f4 {[%clk 0:03:00]}  Nbd7 {[%clk 0:02:36]} 10. g4 {[%clk 0:02:59]}  Bb7 {[%clk 0:02:34]} 11. g5 {[%clk 0:02:57]}  Nxe4 {[%clk 0:02:30]} 12. Nd5 {[%clk 0:02:56]}  exf4 {[%clk 0:02:08]} 13. Bxf4 {[%clk 0:02:51]}  O-O {[%clk 0:02:06]} 14. Bf3 {[%clk 0:02:51]}  Nec5 {[%clk 0:02:01]} 15. Qd2 {[%clk 0:02:43]}  Nxb3 {[%clk 0:01:43]} 16. axb3 {[%clk 0:02:42]}  Nc5 {[%clk 0:01:43]} 17. O-O-O {[%clk 0:02:41]}  Rc8 {[%clk 0:01:41]} 18. Kb1 {[%clk 0:02:39]}  Re8 {[%clk 0:01:41]} 19. h5 {[%clk 0:02:35]}  Bf8 {[%clk 0:01:26]} 20. h6 {[%clk 0:02:23]}  Ne4 {[%clk 0:01:17]} 21. Bxe4 {[%clk 0:02:09]}  Rxe4 {[%clk 0:01:18]} 22. hxg7 {[%clk 0:02:08]}  Bxg7 {[%clk 0:01:16]} 23. Qh2 {[%clk 0:01:44]}  Bxd5 {[%clk 0:00:46]} 24. Rxd5 {[%clk 0:01:40]}  Qc7 {[%clk 0:00:45]} 25. Qxh7+ {[%clk 0:01:37]}  Kf8 {[%clk 0:00:43]} 26. Qxe4 {[%clk 0:01:28]} 1-0


[Site "https://www.chess.com"]

[Event "Titled Tuesday Blitz November 07 Late 2023"]
[White "Jarocka, Liwia"]
[Black "Sreyas Payyappat"]
[WhiteFideId "21807558"]
[BlackFideId "46674969"]
[WhiteElo "2356"]
[BlackElo "2505"]
[Result "0-1"]
[Round "9"]
[TimeControl "180+1"]
[Date "2023.11.07"]
[WhiteClock "0:00:49"]
[BlackClock "0:01:33"]
[Board "66"]

1. d4 {[%clk 0:03:00]}  Nf6 {[%clk 0:02:59]} 2. c4 {[%clk 0:03:01]}  c5 {[%clk 0:03:00]} 3. d5 {[%clk 0:02:56]}  e6 {[%clk 0:03:00]} 4. Nc3 {[%clk 0:02:55]}  exd5 {[%clk 0:03:01]} 5. cxd5 {[%clk 0:02:56]}  d6 {[%clk 0:03:02]} 6. e4 {[%clk 0:02:56]}  g6 {[%clk 0:03:02]} 7. Nf3 {[%clk 0:02:55]}  Bg7 {[%clk 0:03:03]} 8. Bd3 {[%clk 0:02:51]}  O-O {[%clk 0:03:03]} 9. O-O {[%clk 0:02:50]}  Bg4 {[%clk 0:02:53]} 10. h3 {[%clk 0:02:49]}  Bxf3 {[%clk 0:02:52]} 11. Qxf3 {[%clk 0:02:48]}  Nbd7 {[%clk 0:02:53]} 12. Qd1 {[%clk 0:02:42]}  Re8 {[%clk 0:02:50]} 13. Re1 {[%clk 0:02:41]}  a6 {[%clk 0:02:48]} 14. Bc2 {[%clk 0:02:35]}  b5 {[%clk 0:02:44]} 15. a3 {[%clk 0:02:34]}  Rc8 {[%clk 0:02:42]} 16. Bf4 {[%clk 0:02:28]}  Nb6 {[%clk 0:02:38]} 17. b3 {[%clk 0:02:23]}  Nh5 {[%clk 0:02:33]} 18. Bd2 {[%clk 0:02:17]}  b4 {[%clk 0:02:32]} 19. axb4 {[%clk 0:02:09]}  cxb4 {[%clk 0:02:33]} 20. Rxa6 {[%clk 0:01:23]}  Bxc3 {[%clk 0:02:27]} 21. Bxc3 {[%clk 0:01:22]}  Rxc3 {[%clk 0:02:28]} 22. Bd3 {[%clk 0:01:17]}  Nf4 {[%clk 0:02:20]} 23. Bb5 {[%clk 0:01:16]}  Qg5 {[%clk 0:02:12]} 24. Qg4 {[%clk 0:01:13]}  Qxg4 {[%clk 0:01:53]} 25. hxg4 {[%clk 0:01:14]}  Rb8 {[%clk 0:01:53]} 26. g3 {[%clk 0:01:07]}  Nd3 {[%clk 0:01:43]} 27. Bxd3 {[%clk 0:01:00]}  Rxd3 {[%clk 0:01:44]} 28. e5 {[%clk 0:01:00]}  dxe5 {[%clk 0:01:42]} 29. Rxe5 {[%clk 0:00:59]}  Nxd5 {[%clk 0:01:43]} 30. Rd6 {[%clk 0:00:58]}  Nf4 {[%clk 0:01:33]} 31. Rc6 {[%clk 0:00:49]} 0-1


[Site "https://www.chess.com"]